bitfinex-derivatives/quotes_BTCF0:USTF0_20240830
["timestamp","ask_amount","ask_price","bid_price","bid_amount"]
[1725039481527,0.085474,58500.0,58496.0,0.085479]
[1725039481528,0.085477,58499.0,58496.0,0.085479]
[1725039481811,0.2,58500.0,58492.0,0.5608]
[1725039481812,0.15004,58500.0,58498.0,0.085475]
[1725039481822,0.15004,58500.0,58498.0,0.446275]
[1725039482323,0.15004,58500.0,58494.0,0.00025628]
[1725039482324,0.158962,58495.0,58494.0,0.00025628]
[1725039482684,0.061481,58495.0,58494.0,0.00025628]
[1725039482910,0.211521,58495.0,58494.0,0.00025628]
[1725039484512,0.211561,58495.0,58494.0,0.00025628]
[1725039485605,0.15008,58495.0,58494.0,0.00025628]
[1725039485797,0.35008,58499.0,58495.0,0.085481]
[1725039486000,0.2,58499.0,58495.0,0.085481]
[1725039486306,0.2,58499.0,58497.0,0.085478]
[1725039487011,0.201,58499.0,58497.0,0.085478]
[1725039487204,0.201,58499.0,58498.0,0.3608]
[1725039487502,0.202,58499.0,58498.0,0.3608]
[1725039487899,0.002,58499.0,58498.0,0.446277]
[1725039488095,0.201,58499.0,58498.0,0.3608]
[1725039488606,0.204,58499.0,58498.0,0.3608]
[1725039489291,0.206,58499.0,58498.0,0.3608]
[1725039489894,0.206,58499.0,58498.0,0.446277]
[1725039490514,0.291475,58499.0,58498.0,0.3608]
[1725039495705,0.291475,58499.0,58498.0,0.446277]
[1725039496115,0.206,58499.0,58498.0,0.446277]
[1725039496500,0.291475,58499.0,58498.0,0.3608]
[1725039496817,0.085481,58495.0,58494.0,0.00025628]
[1725039497014,0.285481,58495.0,58494.0,0.00025628]
[1725039497405,0.6606082,58495.0,58494.0,0.00025628]
[1725039497826,0.465262,58495.0,58494.0,0.00025628]
[1725039501345,0.465262,58495.0,58482.0,0.3648]
[1725039501346,0.085499,58483.0,58482.0,0.004]
[1725039501517,0.085499,58483.0,58471.0,0.2902]
[1725039501518,0.5608,58483.0,58471.0,0.2902]
[1725039501862,0.085505,58479.0,58471.0,0.651]
[1725039501924,0.285505,58479.0,58471.0,0.651]
[1725039502122,0.285505,58479.0,58474.0,0.085512]
[1725039502426,0.285505,58479.0,58475.0,0.08551]
[1725039502630,0.2,58476.0,58471.0,0.73773251]
[1725039502928,0.2,58476.0,58471.0,0.73677251]
[1725039503126,0.2,58476.0,58473.0,0.085513]
[1725039504535,0.2,58476.0,58471.0,0.65217651]
[1725039504720,0.012,58479.0,58475.0,0.085509]
[1725039504947,0.007,58476.0,58475.0,0.085509]
[1725039505125,0.207,58476.0,58475.0,0.085509]
[1725039505624,0.209,58476.0,58475.0,0.085509]
[1725039505827,0.206,58476.0,58475.0,0.085509]
[1725039506333,0.209,58476.0,58475.0,0.085509]
[1725039506551,0.206,58476.0,58475.0,0.085509]
[1725039506720,0.214,58476.0,58475.0,0.085509]
[1725039507323,0.299509,58476.0,58475.0,0.085509]
[1725039508829,0.17103,58472.0,58471.0,0.00113651]
[1725039509031,0.37103,58472.0,58471.0,0.00025651]
[1725039509729,0.285515,58472.0,58471.0,0.00025651]
[1725039509924,0.286515,58472.0,58471.0,0.00025651]
[1725039510526,0.201,58472.0,58471.0,0.08577251]
[1725039511027,0.204,58472.0,58471.0,0.08577251]
[1725039511536,0.289515,58472.0,58471.0,0.00025651]
[1725039511804,0.089515,58472.0,58471.0,0.00025651]
[1725039512032,0.289515,58472.0,58471.0,0.00025651]
[1725039514561,0.289515,58472.0,58471.0,0.08577251]
[1725039516345,0.004,58472.0,58471.0,0.37128851]
[1725039516526,0.004,58472.0,58471.0,0.98856851]
[1725039516727,0.004,58472.0,58471.0,0.78856851]
[1725039519391,0.00299972,58472.0,58471.0,0.98856851]
[1725039519634,0.00299972,58472.0,58471.0,1.58856851]
[1725039519642,0.00299972,58472.0,58471.0,1.59856851]
[1725039520241,0.00299972,58472.0,58471.0,1.64954196]
[1725039521122,0.00299972,58472.0,58471.0,1.73505796]
[1725039521432,0.00299972,58472.0,58471.0,1.68408451]
[1725039521633,0.00299972,58472.0,58471.0,1.7351339]
[1725039521833,0.00299972,58472.0,58471.0,1.68408451]
[1725039522239,0.00299972,58472.0,58471.0,1.37988451]
[1725039522438,0.00299972,58472.0,58471.0,0.18128851]
[1725039523540,0.00299972,58472.0,58471.0,1.37988451]
[1725039523750,0.00299972,58472.0,58471.0,1.38906851]
[1725039524038,0.00299972,58472.0,58471.0,1.47458451]
[1725039527442,0.00299972,58472.0,58471.0,1.38906851]
[1725039527632,0.00299972,58472.0,58471.0,0.18128851]
[1725039528738,0.00299972,58472.0,58471.0,0.09577251]
[1725039531434,0.00299972,58472.0,58471.0,0.18128851]
[1725039532039,0.00899972,58472.0,58471.0,0.18128851]
[1725039532852,0.006,58472.0,58471.0,0.18128851]
[1725039533033,0.006,58472.0,58471.0,0.09577251]
[1725039533034,0.014,58472.0,58471.0,0.09577251]
[1725039533344,0.18503,58472.0,58471.0,0.00025651]
[1725039533546,0.783625,58472.0,58471.0,0.00025651]
[1725039533972,0.085532,58460.0,58459.0,0.004]
[1725039534138,0.085532,58460.0,58457.0,0.3648]
[1725039534139,0.2,58460.0,58457.0,0.3608]
[1725039534337,0.3608,58466.0,58457.0,0.3608]
[1725039534338,0.0959,58459.0,58457.0,0.3608]
[1725039534659,0.0959,58459.0,58458.0,0.105535]
[1725039535232,0.0959,58459.0,58458.0,0.02]
[1725039535459,0.181434,58459.0,58458.0,0.02]
[1725039536084,0.085529,58463.0,58459.0,0.085533]
[1725039536097,0.085529,58463.0,58462.0,0.3608]
[1725039536946,0.03137367,58464.0,58462.0,0.3608]
[1725039537240,0.00025651,58464.0,58462.0,0.3608]
[1725039537446,0.00025651,58464.0,58463.0,0.085528]
[1725039537941,0.08578251,58464.0,58463.0,0.085528]
[1725039538845,0.09178251,58464.0,58463.0,0.085528]
[1725039539620,0.09878251,58464.0,58463.0,0.085528]
[1725039540046,0.09178251,58464.0,58463.0,0.085528]
[1725039540238,0.09978251,58464.0,58463.0,0.085528]
[1725039540752,0.085528,58463.0,58462.0,0.3608]
[1725039541471,0.085528,58463.0,58458.0,0.02]
[1725039541472,0.171068,58459.0,58458.0,0.02]
[1725039541747,0.371068,58459.0,58458.0,0.02]
[1725039542350,0.285534,58459.0,58458.0,0.02]
[1725039543744,0.287534,58459.0,58458.0,0.02]
[1725039544245,0.087534,58459.0,58458.0,0.02]
[1725039544642,0.03276592,58459.0,58458.0,0.105535]
[1725039547745,0.11829992,58459.0,58458.0,0.105535]
[1725039549240,0.03276592,58459.0,58458.0,0.105535]
[1725039549445,0.31829992,58459.0,58458.0,0.02]
[1725039550647,0.11829992,58459.0,58458.0,0.105535]
[1725039550844,0.03276592,58459.0,58458.0,0.105535]
[1725039553044,0.002,58459.0,58458.0,1.389805]
[1725039553348,0.00025651,58464.0,58463.0,0.256584]
[1725039553546,0.00025651,58464.0,58463.0,0.827384]
[1725039553764,0.00025651,58464.0,58463.0,1.340544]
[1725039554154,0.00025651,58464.0,58463.0,0.456328]
[1725039554664,0.00625651,58464.0,58463.0,0.456328]
[1725039555623,0.01425651,58464.0,58463.0,0.456328]
[1725039556156,0.06676803,58464.0,58463.0,0.456328]
[1725039556470,0.35229403,58464.0,58463.0,0.3608]
[1725039556759,0.35229403,58464.0,58463.0,0.446328]
[1725039556954,0.26676803,58464.0,58463.0,0.446328]
[1725039557167,0.06676803,58464.0,58463.0,0.646328]
[1725039557464,0.06676803,58464.0,58463.0,0.731856]
[1725039558057,0.06676803,58464.0,58463.0,0.741856]
[1725039558643,0.06676803,58464.0,58463.0,1.940544]
[1725039558844,3e-08,58464.0,58463.0,1.940544]
[1725039559261,3e-08,58464.0,58463.0,1.97063219]
[1725039559662,3e-08,58464.0,58463.0,1.77063219]
[1725039559847,0.03080927,58475.0,58474.0,0.085512]
[1725039560058,0.30703119,58481.0,58480.0,0.085503]
[1725039560249,0.085502,58481.0,58480.0,0.085503]
[1725039561154,0.285502,58481.0,58480.0,0.085503]
[1725039561759,0.31701676,58481.0,58480.0,0.085503]
[1725039562153,0.34501676,58481.0,58480.0,0.086503]
[1725039562776,0.34501676,58481.0,58480.0,0.001]
[1725039563761,1.62902076,58481.0,58480.0,0.001]
[1725039563961,0.171036,58470.0,58469.0,0.00025651]
[1725039564152,0.371036,58470.0,58469.0,0.00025651]
[1725039564359,0.42353929,58470.0,58469.0,0.00025651]
[1725039565558,0.43553929,58470.0,58469.0,0.00025651]
[1725039565956,0.44854327,58470.0,58469.0,0.00125651]
[1725039568280,0.16302527,58470.0,58469.0,0.00125651]
[1725039568567,0.110518,58470.0,58469.0,0.00125651]
[1725039569264,0.196036,58470.0,58469.0,0.00125651]
[1725039569768,0.47968035,58470.0,58469.0,0.00125651]
[1725039570983,0.47968638,58470.0,58469.0,0.00125651]
[1725039572672,0.36916838,58470.0,58469.0,0.00125651]
[1725039573170,0.45468638,58470.0,58469.0,0.00125651]
[1725039574973,0.25468638,58470.0,58469.0,0.00125651]
[1725039575287,0.45468638,58470.0,58469.0,0.00125651]
[1725039575470,0.36916838,58470.0,58469.0,0.00125651]
[1725039576195,1.84304838,58470.0,58458.0,0.02]
[1725039576394,0.371068,58459.0,58458.0,0.02]
[1725039576577,0.4235813,58459.0,58458.0,0.02]
[1725039576765,0.5091153,58459.0,58458.0,0.02]
[1725039577081,0.4189275,58459.0,58458.0,0.02]
[1725039577295,0.2235813,58459.0,58458.0,0.02]
[1725039577584,0.2235813,58459.0,58458.0,0.023]
[1725039578273,0.4235813,58459.0,58458.0,0.023]
[1725039578782,0.42359179,58459.0,58458.0,0.023]
[1725039579484,0.45517283,58459.0,58458.0,0.023]
[1725039580670,0.45517013,58459.0,58458.0,0.023]
[1725039582174,0.25517013,58459.0,58458.0,0.023]
[1725039582391,0.45517013,58459.0,58458.0,0.023]
[1725039582577,0.65051633,58459.0,58458.0,0.023]
[1725039583019,0.59799524,58459.0,58458.0,0.023]
[1725039585384,0.51246124,58459.0,58458.0,0.023]
[1725039585584,0.11711504,58459.0,58458.0,0.108535]
[1725039586977,0.03158104,58459.0,58458.0,0.308535]
[1725039587199,0.00025651,58464.0,58463.0,0.085528]
[1725039587595,0.00025651,58464.0,58463.0,0.446328]
[1725039588509,0.00625651,58464.0,58463.0,0.446328]
[1725039588885,0.01025651,58464.0,58463.0,0.446328]
[1725039589890,0.01025651,58464.0,58463.0,0.541228]
[1725039590287,0.01025651,58464.0,58463.0,0.638128]
[1725039593292,0.01025651,58464.0,58463.0,0.723656]
[1725039596184,0.01025651,58464.0,58463.0,0.638128]
[1725039596394,0.01025651,58464.0,58463.0,0.541228]
[1725039601703,0.01025651,58464.0,58463.0,1.739916]
[1725039602312,0.01025651,58464.0,58463.0,1.749916]
[1725039602905,0.01025651,58464.0,58463.0,1.835444]
[1725039604204,0.01025651,58464.0,58463.0,0.551228]
[1725039604438,0.01025651,58464.0,58463.0,0.541228]
[1725039604631,0.01025651,58464.0,58463.0,0.446328]
[1725039604906,0.09578251,58464.0,58463.0,0.446328]
[1725039605111,0.085534,58459.0,58458.0,0.105534]
[1725039605310,0.285534,58459.0,58458.0,0.02]
[1725039605903,0.085534,58459.0,58458.0,0.02]
[1725039606817,0.085534,58459.0,58458.0,0.105535]
[1725039607216,0.00425651,58464.0,58458.0,0.22]
[1725039607417,0.00425651,58464.0,58461.0,0.2]
[1725039607614,0.00025651,58464.0,58461.0,0.2]
[1725039608166,0.00025651,58464.0,58463.0,0.085528]
[1725039608714,0.00225651,58464.0,58463.0,0.085528]
[1725039608927,0.00225651,58464.0,58463.0,1.284216]
[1725039609225,0.00225651,58464.0,58463.0,1.383616]
[1725039609426,0.00225651,58464.0,58463.0,1.393616]
[1725039609619,0.00225651,58464.0,58463.0,1.479144]
[1725039610019,0.00225651,58464.0,58463.0,0.095528]
[1725039610223,0.00825651,58464.0,58463.0,0.095528]
[1725039610431,0.01025651,58464.0,58463.0,0.095528]
[1725039610922,0.12412256,58464.0,58463.0,0.095528]
[1725039611117,0.085528,58463.0,58462.0,0.3608]
[1725039611383,0.37099818,58463.0,58462.0,0.30535721]
[1725039612026,0.31848886,58463.0,58462.0,0.30535721]
[1725039612227,0.24828473,58463.0,58462.0,0.30535721]
[1725039612930,0.191928,58463.0,58462.0,0.30535721]
[1725039613832,0.191928,58463.0,58458.0,0.02]
[1725039613833,0.49859443,58463.0,58458.0,0.105534]
[1725039614032,0.2,58462.0,58458.0,0.105534]
[1725039614525,0.094,58461.0,58458.0,0.105534]
[1725039614728,0.085534,58459.0,58458.0,0.105534]
[1725039614925,0.085534,58459.0,58458.0,0.107534]
[1725039616016,0.085534,58459.0,58458.0,0.105534]
[1725039616221,0.08553,58462.0,58459.0,0.085533]
[1725039616522,0.13279443,58463.0,58462.0,0.085529]
[1725039616842,0.13279443,58463.0,58462.0,0.446329]
[1725039618322,0.13779443,58463.0,58462.0,0.446329]
[1725039618522,0.14079443,58463.0,58462.0,0.446329]
[1725039620238,0.03939443,58463.0,58462.0,0.446329]
[1725039621130,0.09190391,58463.0,58462.0,0.446329]
[1725039621922,0.06050948,58463.0,58462.0,1.919847]
[1725039622131,4.8e-07,58463.0,58462.0,2.005376]
[1725039622323,5.1e-07,58464.0,58463.0,0.855272]
[1725039622722,5.1e-07,58464.0,58463.0,1.455272]
[1725039623023,5.1e-07,58464.0,58463.0,1.655272]
[1725039623225,0.004,58476.0,58475.0,0.17102]
[1725039623423,0.0978,58485.0,58484.0,0.085497]
[1725039623624,0.15505691,58491.0,58484.0,0.2]
[1725039623823,0.15505691,58491.0,58490.0,0.3608]
[1725039623824,0.0937,58491.0,58490.0,0.3608]
[1725039624019,0.21056735,58491.0,58490.0,0.3608]
[1725039624231,0.085494,58486.0,58485.0,0.08575151]
[1725039624434,0.285494,58486.0,58485.0,0.08575151]
[1725039625930,0.013,58486.0,58485.0,0.28675151]
[1725039626520,0.013,58486.0,58485.0,1.39971151]
[1725039626931,0.012,58486.0,58485.0,0.00125651]
[1725039627136,0.012,58486.0,58485.0,0.08675251]
[1725039627524,0.012,58486.0,58485.0,0.28675251]
[1725039628131,0.012,58486.0,58485.0,0.08675251]
[1725039628340,0.012,58486.0,58485.0,0.00125651]
[1725039628633,0.097494,58486.0,58485.0,0.00125651]
[1725039628831,0.18129661,58487.0,58485.0,0.00125651]
[1725039629532,0.085494,58486.0,58485.0,0.00125651]
[1725039629732,0.090494,58486.0,58485.0,0.00225651]
[1725039629927,0.193094,58486.0,58485.0,0.00225651]
[1725039630328,0.188094,58486.0,58485.0,0.00125651]
[1725039630522,0.188094,58486.0,58485.0,0.00225651]
[1725039631436,0.194094,58486.0,58485.0,0.00225651]
[1725039631625,0.194094,58486.0,58485.0,0.00125651]
[1725039631828,0.197094,58486.0,58485.0,0.00225651]
[1725039633636,0.3924402,58486.0,58485.0,0.00225651]
[1725039633835,0.197094,58486.0,58485.0,0.00225651]
[1725039634029,0.3924402,58486.0,58485.0,0.00225651]
[1725039634746,0.094494,58486.0,58485.0,0.00225651]
[1725039635946,0.15585091,58486.0,58485.0,0.00225651]
[1725039636536,0.35119711,58486.0,58485.0,0.00225651]
[1725039637248,0.085505,58479.0,58474.0,0.004]
[1725039637434,0.085505,58479.0,58466.0,0.3608]
[1725039637435,0.085515,58472.0,58466.0,0.3608]
[1725039637639,0.371044,58467.0,58466.0,0.3608]
[1725039637837,0.371044,58467.0,58461.0,0.3286]
[1725039637838,0.33153934,58467.0,58461.0,0.3608]
[1725039638038,0.085529,58463.0,58461.0,0.3608]
[1725039638253,0.21706834,58462.0,58461.0,0.3608]
[1725039638436,0.21606834,58462.0,58461.0,0.3608]
[1725039638932,0.085534,58459.0,58458.0,0.02]
[1725039639135,0.084534,58459.0,58458.0,0.02]
[1725039639341,0.085529,58463.0,58459.0,0.085534]
[1725039639646,0.11657272,58463.0,58461.0,0.3608]
[1725039640140,0.006,58462.0,58461.0,0.3618]
[1725039640351,0.091529,58462.0,58461.0,0.3618]
[1725039640759,0.085529,58462.0,58461.0,0.3618]
[1725039641453,0.14689281,58462.0,58461.0,0.3618]
[1725039641749,0.14789281,58462.0,58461.0,0.3618]
[1725039642351,0.14789281,58462.0,58461.0,0.3608]
[1725039642543,0.15489281,58462.0,58461.0,0.3618]
[1725039643046,0.093529,58462.0,58461.0,0.3618]
[1725039643244,0.093529,58462.0,58458.0,0.02]
[1725039643245,0.085534,58459.0,58458.0,0.02]
[1725039643439,0.531868,58459.0,58458.0,0.02]
[1725039643751,0.959534,58459.0,58458.0,0.02]
[1725039643935,1.2524802,58459.0,58458.0,0.02]
[1725039644138,1.3380142,58459.0,58458.0,0.02]
[1725039644344,1.2524802,58459.0,58458.0,0.023]
[1725039644540,0.8887202,58459.0,58458.0,0.023]
[1725039644951,1.4019202,58459.0,58458.0,0.023]
[1725039645250,0.8887202,58459.0,58458.0,0.023]
[1725039645446,0.9812542,58459.0,58458.0,0.024]
[1725039647047,0.8957202,58459.0,58458.0,0.024]
[1725039647641,0.7462802,58459.0,58458.0,0.024]
[1725039647844,0.8957202,58459.0,58458.0,0.024]
[1725039648050,0.9812542,58459.0,58458.0,0.024]
[1725039648440,0.8318142,58459.0,58458.0,0.024]
[1725039648640,0.9812542,58459.0,58458.0,0.024]
[1725039649844,1.4944542,58459.0,58458.0,0.024]
[1725039650049,1.4944542,58459.0,58458.0,0.0100276]
[1725039650645,0.9812542,58459.0,58458.0,0.0100276]
[1725039651355,1.4944542,58459.0,58458.0,0.0070276]
[1725039651647,0.9812542,58459.0,58458.0,0.0080276]
[1725039651854,1.1027742,58459.0,58458.0,0.0080276]
[1725039652446,0.9196402,58459.0,58458.0,0.0080276]
[1725039652645,0.7702002,58459.0,58458.0,0.0080276]
[1725039654854,0.6486802,58459.0,58458.0,0.0080276]
[1725039655442,0.2878802,58459.0,58458.0,0.0080276]
[1725039656244,0.2023462,58459.0,58458.0,0.0935626]
[1725039656448,0.007,58459.0,58458.0,0.0935626]
[1725039657358,0.092534,58459.0,58458.0,0.0080276]
[1725039663359,0.007,58459.0,58458.0,0.0935626]
[1725039663567,0.007,58459.0,58458.0,0.2899626]
[1725039663755,0.007,58459.0,58458.0,0.0080276]
[1725039663952,0.092534,58459.0,58458.0,0.0935626]
[1725039664566,0.007,58459.0,58458.0,0.0935626]
[1725039665861,0.092534,58459.0,58458.0,0.0935626]
[1725039666867,0.092534,58459.0,58458.0,0.0080276]
[1725039669174,0.007,58459.0,58458.0,0.0935626]
[1725039674860,0.092534,58459.0,58458.0,0.0935626]
[1725039675477,0.007,58459.0,58458.0,0.0935626]
[1725039675674,0.007,58459.0,58458.0,0.3790976]
[1725039677784,0.007,58459.0,58458.0,0.1790976]
[1725039683686,0.092534,58459.0,58458.0,0.0935626]
[1725039683870,0.178068,58459.0,58458.0,0.0935626]
[1725039684072,0.178068,58459.0,58458.0,0.0080276]
[1725039684073,0.538868,58459.0,58458.0,0.0080276]
[1725039684272,0.726368,58459.0,58458.0,0.0080276]
[1725039684477,0.77626098,58459.0,58458.0,0.0080276]
[1725039684686,0.69072698,58459.0,58458.0,0.0080276]
[1725039685669,0.77626098,58459.0,58458.0,0.0080276]
[1725039686389,0.69072698,58459.0,58458.0,0.0080276]
[1725039687274,0.69111718,58459.0,58458.0,0.0080276]
[1725039689981,0.51308318,58459.0,58458.0,0.0935626]
[1725039690189,0.41808318,58459.0,58458.0,0.0935626]
[1725039690881,0.05728318,58459.0,58458.0,0.1035626]
[1725039691279,0.05728318,58459.0,58458.0,0.0935626]
[1725039691485,0.05728318,58459.0,58458.0,0.2935626]
[1725039691682,0.05728318,58459.0,58458.0,0.4876626]
[1725039692584,0.05728318,58459.0,58458.0,0.5731976]
[1725039692979,0.05728318,58459.0,58458.0,1.73760872]
[1725039693177,0.04015318,58459.0,58458.0,1.75475853]
[1725039693480,0.13352,58460.0,58459.0,0.171068]
[1725039693687,0.13352,58460.0,58459.0,0.684268]
[1725039693889,0.08577851,58468.0,58467.0,0.085522]
[1725039694084,0.00025651,58468.0,58467.0,0.085522]
[1725039695585,0.01425651,58468.0,58467.0,0.086522]
[1725039695786,0.02025651,58468.0,58467.0,0.087522]
[1725039699592,0.02025651,58468.0,58467.0,0.173044]
[1725039700689,0.02025651,58468.0,58467.0,0.087522]
[1725039701093,0.10577751,58468.0,58467.0,0.087522]
[1725039702795,0.15828522,58468.0,58467.0,0.087522]
[1725039703103,0.24380622,58468.0,58467.0,0.002]
[1725039703289,0.24380622,58468.0,58458.0,0.0060276]
[1725039703290,0.085529,58463.0,58458.0,0.0060276]
[1725039703797,0.085529,58463.0,58462.0,0.085529]
[1725039704389,0.094529,58463.0,58462.0,0.085529]
[1725039705399,0.098529,58463.0,58462.0,0.086529]
[1725039706098,0.12927872,58463.0,58462.0,0.086529]
[1725039710193,0.12927872,58463.0,58462.0,0.001]
[1725039711903,0.12927872,58463.0,58462.0,0.086529]
[1725039712910,0.12927872,58463.0,58462.0,0.001]
[1725039714812,0.12927872,58463.0,58462.0,0.086529]
[1725039715909,0.04374972,58463.0,58462.0,0.086529]
[1725039718025,0.14822341,58467.0,58462.0,0.001]
[1725039718220,0.085525,58465.0,58464.0,0.085524]
[1725039719030,0.14822341,58467.0,58466.0,0.085524]
[1725039719225,0.26483621,58467.0,58466.0,0.085524]
[1725039719427,0.1166128,58467.0,58466.0,0.085524]
[1725039719927,0.1186128,58467.0,58466.0,0.085524]
[1725039720532,0.0310908,58467.0,58466.0,0.085524]
[1725039720827,0.002,58467.0,58466.0,0.086524]
[1725039721921,0.002,58467.0,58466.0,0.087524]
[1725039724319,0.002,58467.0,58466.0,0.002]
[1725039724518,0.087522,58467.0,58466.0,0.002]
[1725039725719,0.14003673,58467.0,58466.0,0.002]
[1725039726025,0.14003673,58467.0,58466.0,0.087524]
[1725039726228,0.002,58467.0,58466.0,0.258572]
[1725039726430,0.002,58467.0,58466.0,0.087524]
[1725039726936,0.002,58467.0,58466.0,0.097524]
[1725039727333,0.002,58467.0,58466.0,0.087524]
[1725039728237,0.002,58467.0,58466.0,0.173048]
[1725039730831,0.002,58467.0,58466.0,1.371692]
[1725039731233,0.002,58467.0,58466.0,1.286168]
[1725039732128,0.002,58467.0,58466.0,0.858572]
[1725039732323,0.002,58467.0,58466.0,1.286168]
[1725039732537,0.002,58467.0,58466.0,1.371692]
[1725039732737,0.002,58467.0,58466.0,1.381692]
[1725039736535,0.004,58480.0,58467.0,0.51312]
[1725039736841,0.16592,58484.0,58466.0,0.612]
[1725039736842,0.16592,58484.0,58483.0,0.085499]
[1725039737046,0.16592,58484.0,58483.0,0.370998]
[1725039737633,0.16592,58484.0,58483.0,1.569457]
[1725039738043,0.081939,58484.0,58483.0,1.570457]
[1725039738234,0.00025651,58489.0,58488.0,0.170982]
[1725039738436,0.00025651,58489.0,58488.0,0.817273]
[1725039738736,0.00025651,58489.0,58488.0,1.930193]
[1725039740048,0.00025651,58489.0,58488.0,1.96125351]
[1725039740435,0.00025651,58489.0,58488.0,1.96325351]
[1725039740842,0.00025651,58489.0,58488.0,2.16325351]
[1725039741140,0.004,58500.0,58498.0,0.085477]
[1725039741342,0.25544,58502.0,58498.0,0.446277]
[1725039741544,0.16604,58502.0,58498.0,0.446277]
[1725039741747,0.05149098,58499.0,58498.0,0.446277]
[1725039741941,0.02,58499.0,58498.0,0.446277]
[1725039743051,0.02,58499.0,58498.0,0.808077]
[1725039744144,0.02,58499.0,58498.0,0.809077]
[1725039746958,0.05122078,58499.0,58498.0,0.809077]
[1725039749158,0.05122078,58499.0,58498.0,0.087477]
[1725039749159,0.13669578,58499.0,58498.0,0.087477]
[1725039749345,0.13669578,58499.0,58498.0,0.448277]
[1725039749545,0.18917201,58499.0,58498.0,0.448277]
[1725039749848,0.13669578,58499.0,58498.0,0.448277]
[1725039751143,0.18917201,58499.0,58498.0,0.448277]
[1725039751549,0.13669578,58499.0,58498.0,0.448277]
[1725039751855,0.05122078,58499.0,58498.0,0.448277]
[1725039753658,0.13669578,58499.0,58498.0,0.448277]
[1725039754358,0.23748879,58499.0,58498.0,0.448277]
[1725039754557,0.10369701,58499.0,58498.0,0.448277]
[1725039754852,0.05122078,58499.0,58498.0,0.448277]
[1725039755261,0.13669578,58499.0,58498.0,0.3628]
[1725039755457,0.18917201,58499.0,58498.0,0.3628]
[1725039755756,0.66844578,58499.0,58498.0,0.002]
[1725039756058,0.170966,58494.0,58493.0,0.00025651]
[1725039756260,1.481846,58494.0,58493.0,0.00025651]
[1725039756643,1.481846,58494.0,58483.0,0.004]
[1725039756644,0.085491,58488.0,58483.0,0.004]
[1725039756862,0.085497,58485.0,58483.0,0.2]
[1725039757071,0.083497,58485.0,58484.0,0.085495]
[1725039757655,0.083497,58485.0,58484.0,0.08122821]
[1725039758758,0.083497,58485.0,58481.0,0.3608]
[1725039758759,0.1838,58487.0,58481.0,0.446301]
[1725039758947,0.0855,58482.0,58481.0,0.3608]
[1725039759155,0.0845,58482.0,58481.0,0.3608]
[1725039759355,0.0835,58482.0,58481.0,0.3608]
[1725039759546,0.0835,58482.0,58481.0,0.446302]
[1725039759746,0.0835,58482.0,58481.0,0.447302]
[1725039759955,0.4443,58482.0,58481.0,0.087502]
[1725039761360,0.39161469,58482.0,58481.0,0.087502]
[1725039761565,0.0938,58484.0,58483.0,0.085499]
[1725039761758,0.0938,58484.0,58483.0,0.285499]
[1725039762259,0.12401632,58484.0,58483.0,0.285499]
[1725039762851,0.13501632,58484.0,58483.0,0.287499]
[1725039763667,0.04121632,58484.0,58483.0,0.287499]
[1725039763858,0.04121632,58484.0,58483.0,0.372998]
[1725039764365,0.011,58484.0,58483.0,0.733798]
[1725039764660,0.19804676,58484.0,58483.0,0.733798]
[1725039764865,0.19804676,58484.0,58483.0,0.448299]
[1725039765166,0.011,58484.0,58483.0,0.733798]
[1725039765551,0.011,58484.0,58483.0,1.332257]
[1725039766260,0.011,58484.0,58483.0,1.932257]
[1725039767161,0.011,58484.0,58483.0,1.942257]
[1725039768454,0.011,58484.0,58483.0,2.303057]
[1725039769764,0.18701821,58488.0,58487.0,0.256479]
[1725039769956,0.18701821,58488.0,58487.0,0.456479]
[1725039770353,0.08574451,58490.0,58489.0,0.08549]
[1725039770556,0.08574451,58490.0,58489.0,0.44629]
[1725039770757,0.08574451,58490.0,58489.0,0.08549]
[1725039771466,0.085494,58488.0,58487.0,0.086491]
[1725039771664,0.085494,58488.0,58487.0,0.001]
[1725039772159,0.085494,58488.0,58487.0,0.002]
[1725039772358,0.084494,58488.0,58487.0,0.086493]
[1725039772864,0.084494,58488.0,58487.0,0.286493]
[1725039773263,0.084494,58488.0,58487.0,0.287493]
[1725039774768,0.084494,58488.0,58487.0,0.002]
[1725039777673,0.00025651,58490.0,58489.0,0.08549]
[1725039777873,0.08574451,58490.0,58489.0,0.08549]
[1725039778985,0.08574451,58490.0,58489.0,0.001]
[1725039779271,0.17123251,58490.0,58489.0,0.002]
[1725039779471,0.37123251,58490.0,58489.0,0.002]
[1725039779662,0.17123251,58490.0,58489.0,0.002]
[1725039779859,0.36657871,58490.0,58489.0,0.002]
[1725039781777,0.085503,58480.0,58479.0,0.00025651]
[1725039781969,0.446303,58480.0,58479.0,0.00025651]
[1725039782975,0.085503,58480.0,58479.0,0.00025651]
[1725039783172,0.085503,58480.0,58479.0,0.08576151]
[1725039783371,0.085503,58480.0,58479.0,0.08676151]
[1725039783972,0.086503,58480.0,58479.0,0.08776151]
[1725039786275,0.01457581,58484.0,58479.0,0.08776151]
[1725039786476,0.085502,58481.0,58480.0,0.085503]
[1725039787670,0.10007381,58484.0,58483.0,0.085499]
[1725039788385,0.116923,58484.0,58483.0,0.085499]
[1725039788578,0.031425,58484.0,58483.0,0.085499]
[1725039788774,0.3608,58487.0,58484.0,0.085497]
[1725039788979,0.3608,58487.0,58486.0,0.285494]
[1725039789283,0.14120089,58489.0,58488.0,0.085491]
[1725039789580,0.12488251,58489.0,58488.0,0.085491]
[1725039790583,0.23871144,58489.0,58488.0,0.085491]
[1725039792082,0.23871144,58489.0,58488.0,0.086491]
[1725039792287,0.14451144,58489.0,58488.0,0.171982]
[1725039792475,0.14451144,58489.0,58488.0,0.172982]
[1725039792676,5.1e-07,58490.0,58489.0,0.25647]
[1725039792876,0.02,58499.0,58498.0,0.085477]
[1725039793075,0.02,58499.0,58498.0,1.092554]
[1725039793377,0.02,58499.0,58498.0,2.205394]